bitfinex-derivatives/quotes_BTCF0:USTF0_20250108
["timestamp","ask_amount","ask_price","bid_price","bid_amount"]
[1736365003711,0.052932,94474.0,94468.0,0.3608]
[1736365003907,0.3608,94477.0,94468.0,0.413735]
[1736365004104,0.052931,94476.0,94469.0,0.413735]
[1736365004506,0.052928,94482.0,94471.0,0.052933]
[1736365004911,0.16133153,94481.0,94471.0,0.052933]
[1736365005305,0.001,94476.0,94471.0,0.052933]
[1736365005506,0.001,94476.0,94474.0,0.052932]
[1736365005701,0.001,94476.0,94469.0,0.3608]
[1736365006011,0.002,94477.0,94471.0,0.052933]
[1736365006716,0.002,94477.0,94469.0,0.3608]
[1736365006908,0.052933,94473.0,94469.0,0.3608]
[1736365007808,0.002,94476.0,94469.0,0.3608]
[1736365008122,0.05293,94478.0,94470.0,1.5]
[1736365008312,0.001,94473.0,94470.0,1.5]
[1736365008817,0.052933,94472.0,94470.0,1.5]
[1736365009022,0.003,94473.0,94458.0,0.00677619]
[1736365009209,0.003,94473.0,94472.0,0.3608]
[1736365009409,0.003,94473.0,94472.0,1.8608]
[1736365010519,0.003,94473.0,94464.0,0.052937]
[1736365010719,0.052934,94470.0,94464.0,0.052937]
[1736365010918,0.003,94473.0,94457.0,0.00685537]
[1736365011119,0.052939,94462.0,94459.0,0.3608]
[1736365011418,0.052935,94469.0,94459.0,0.3608]
[1736365011716,0.001,94473.0,94464.0,0.052937]
[1736365012118,0.001,94470.0,94464.0,0.052937]
[1736365012311,0.001,94470.0,94465.0,0.1151]
[1736365012615,0.001,94470.0,94465.0,0.168037]
[1736365012819,0.052933,94472.0,94465.0,0.168037]
[1736365013016,0.052928,94481.0,94473.0,0.052932]
[1736365013403,0.3608,94479.0,94473.0,0.052932]
[1736365013609,0.052928,94481.0,94478.0,0.3608]
[1736365013909,0.052929,94480.0,94478.0,0.3608]
[1736365014109,0.2517,94486.0,94479.0,0.3608]
[1736365014304,0.052929,94480.0,94469.0,0.052935]
[1736365014509,0.05293,94478.0,94471.0,0.052934]
[1736365014704,0.16133153,94480.0,94471.0,0.052934]
[1736365014914,0.052932,94475.0,94471.0,0.052934]
[1736365016216,0.002,94478.0,94469.0,0.3608]
[1736365016520,0.002,94478.0,94477.0,0.41373]
[1736365017015,0.3608,94500.0,94477.0,2.1608]
[1736365017016,0.10770934,94500.0,94477.0,2.1608]
[1736365017223,0.16062734,94500.0,94494.0,0.052921]
[1736365017409,0.24656524,94505.0,94494.0,0.052921]
[1736365017611,0.052918,94499.0,94494.0,0.052921]
[1736365017813,0.052919,94498.0,94494.0,0.052921]
[1736365018009,0.24656524,94505.0,94491.0,0.3608]
[1736365018010,0.052918,94499.0,94491.0,0.3608]
[1736365018416,0.32176104,94509.0,94491.0,0.3608]
[1736365018624,0.006,94505.0,94499.0,0.3608]
[1736365018821,0.052917,94501.0,94499.0,0.3608]
[1736365019017,0.32176104,94509.0,94499.0,0.3608]
[1736365019018,0.052918,94500.0,94499.0,0.3608]
[1736365019222,0.003,94498.0,94482.0,0.3608]
[1736365019416,0.052926,94485.0,94482.0,0.3608]
[1736365019616,0.052919,94497.0,94482.0,0.3608]
[1736365019823,0.052927,94483.0,94482.0,0.3608]
[1736365020427,0.052919,94498.0,94482.0,0.3608]
[1736365020729,0.007,94505.0,94491.0,0.413722]
[1736365020917,0.007,94505.0,94491.0,0.3608]
[1736365021225,0.052922,94492.0,94491.0,0.3608]
[1736365022125,0.052922,94492.0,94487.0,0.052924]
[1736365022322,0.052927,94483.0,94482.0,0.001]
[1736365022512,0.052928,94481.0,94478.0,0.1133]
[1736365022716,0.3608,94489.0,94478.0,0.1133]
[1736365023023,0.052931,94476.0,94475.0,0.0015877]
[1736365025724,0.05963514,94476.0,94475.0,0.0015877]
[1736365025919,0.052931,94476.0,94475.0,0.0015877]
[1736365026124,0.3608,94499.0,94488.0,0.052924]
[1736365026426,0.00076,94510.0,94498.0,0.3608]
[1736365026623,0.052911,94511.0,94505.0,0.052915]
[1736365027021,0.3608,94517.0,94500.0,0.1614778]
[1736365027221,0.1,94520.0,94519.0,0.052907]
[1736365028323,0.153906,94520.0,94515.0,0.167709]
[1736365028525,0.101,94520.0,94518.0,0.052907]
[1736365028929,0.101,94520.0,94519.0,0.001]
[1736365029733,0.101,94520.0,94519.0,0.053907]
[1736365030417,0.1,94520.0,94519.0,0.053907]
[1736365030824,0.1,94520.0,94519.0,0.052907]
[1736365031632,0.09995754,94520.0,94519.0,0.06141802]
[1736365031829,0.09995754,94520.0,94519.0,0.053907]
[1736365032422,0.09995754,94520.0,94519.0,0.001]
[1736365032618,0.09995754,94520.0,94517.0,0.3608]
[1736365032822,0.09995754,94520.0,94501.0,0.3608]
[1736365033034,0.052909,94515.0,94505.0,0.052915]
[1736365033331,0.05291,94513.0,94512.0,0.3608]
[1736365033834,0.115,94519.0,94512.0,0.3608]
[1736365034023,0.115,94519.0,94513.0,0.3608]
[1736365034223,0.115,94519.0,94502.0,0.052916]
[1736365034224,0.052909,94515.0,94502.0,0.052916]
[1736365034418,0.052909,94515.0,94511.0,0.3608]
[1736365034623,0.09995754,94520.0,94511.0,0.3608]
[1736365034829,0.09995754,94520.0,94519.0,0.3608]
[1736365035528,0.09995754,94520.0,94519.0,0.4869]
[1736365036027,0.09995754,94520.0,94519.0,0.4879]
[1736365036934,0.09132224,94520.0,94519.0,0.4879]
[1736365037129,0.09132224,94520.0,94519.0,0.49551461]
[1736365037330,0.09232224,94520.0,94519.0,0.49551461]
[1736365037531,0.09232224,94520.0,94519.0,0.49451461]
[1736365037731,0.09232224,94520.0,94519.0,1.99551461]
[1736365038340,0.1,94540.0,94521.0,0.052906]
[1736365038537,0.1,94540.0,94539.0,0.3608]
[1736365039134,0.1,94540.0,94539.0,1.8608]
[1736365039734,0.1,94540.0,94539.0,0.3608]
[1736365040333,0.104,94540.0,94539.0,0.3608]
[1736365041230,0.1,94560.0,94559.0,0.052885]
[1736365041538,0.1,94560.0,94559.0,0.03088499]
[1736365042839,0.103,94560.0,94559.0,0.03088499]
[1736365043042,0.155884,94560.0,94554.0,0.1194]
[1736365043337,0.155884,94560.0,94553.0,0.413688]
[1736365043338,0.052886,94557.0,94553.0,0.3608]
[1736365043636,0.052887,94555.0,94553.0,0.3608]
[1736365043939,0.3608,94555.0,94539.0,0.00158669]
[1736365044145,0.052895,94541.0,94539.0,0.00158669]
[1736365044442,0.1133,94540.0,94539.0,0.00158669]
[1736365044742,0.3608,94555.0,94539.0,0.00158669]
[1736365045038,0.166187,94554.0,94553.0,0.003]
[1736365045236,0.282387,94554.0,94539.0,0.00258669]
[1736365045432,0.052895,94540.0,94539.0,0.001]
[1736365047739,0.052896,94539.0,94528.0,0.052901]
[1736365048132,0.001,94540.0,94533.0,0.3608]
[1736365048438,0.002,94540.0,94539.0,0.001]
[1736365049126,0.1614778,94550.0,94539.0,0.001]
[1736365049331,0.052891,94549.0,94542.0,0.3608]
[1736365050538,0.2295,94554.0,94542.0,0.3608]
[1736365050741,0.001,94549.0,94542.0,0.413694]
[1736365051440,0.001,94549.0,94547.0,0.052891]
[1736365052028,0.001,94549.0,94548.0,0.052891]
[1736365052338,0.001,94549.0,94543.0,0.3608]
[1736365052531,0.001,94549.0,94548.0,0.052891]
[1736365054439,0.1,94560.0,94559.0,0.052885]
[1736365054637,0.1,94560.0,94559.0,0.413685]
[1736365055745,0.101,94560.0,94559.0,1.914685]
[1736365055946,0.101,94560.0,94559.0,2.275485]
[1736365056147,0.101,94560.0,94559.0,2.575485]
[1736365056342,0.101,94560.0,94559.0,2.275485]
[1736365057344,0.101,94560.0,94559.0,2.276485]
[1736365057939,0.1,94580.0,94579.0,0.052873]
[1736365058241,0.09494529,94580.0,94579.0,0.413673]
[1736365058640,0.09494529,94580.0,94579.0,1.913673]
[1736365059147,0.09494529,94580.0,94579.0,1.914673]
[1736365059545,0.09494529,94580.0,94579.0,0.414673]
[1736365059738,0.09594529,94580.0,94579.0,0.414673]
[1736365059940,0.09594529,94580.0,94579.0,0.3618]
[1736365060752,0.09594529,94580.0,94579.0,0.3628]
[1736365061342,0.052877,94572.0,94569.0,0.052879]
[1736365061549,0.3608,94575.0,94558.0,0.00802966]
[1736365061849,0.052885,94558.0,94555.0,0.052886]
[1736365062651,0.052886,94557.0,94551.0,0.00830097]
[1736365062851,0.052887,94556.0,94549.0,0.41369]
[1736365063050,0.052879,94569.0,94549.0,0.3608]
[1736365063249,0.05289,94550.0,94549.0,0.36891629]
[1736365064048,0.3608,94558.0,94542.0,0.3608]
[1736365064347,0.052893,94543.0,94542.0,0.3608]
[1736365064652,0.052889,94552.0,94545.0,0.052892]
[1736365064846,0.001,94550.0,94549.0,0.004]
[1736365065342,0.05389,94550.0,94549.0,0.004]
[1736365065548,0.05289,94550.0,94542.0,0.417694]
[1736365066751,0.052884,94560.0,94542.0,0.3648]
[1736365066949,0.052884,94560.0,94550.0,0.3608]
[1736365067144,0.052886,94557.0,94550.0,0.3608]
[1736365067443,0.1614778,94560.0,94543.0,1.5]
[1736365067648,0.05389,94550.0,94549.0,0.003]
[1736365068164,0.05389,94550.0,94545.0,0.052892]
[1736365068165,0.05289,94550.0,94545.0,0.052892]
[1736365068854,0.05289,94550.0,94549.0,0.001]
[1736365070252,0.001,94550.0,94549.0,0.001]
[1736365070950,0.001,94550.0,94547.0,0.052891]
[1736365071449,0.001,94550.0,94545.0,0.003]
[1736365071654,0.3597,94549.0,94541.0,0.3608]
[1736365072060,0.052893,94544.0,94541.0,0.3608]
[1736365073949,0.3608,94547.0,94540.0,0.00158626]
[1736365074148,0.3608,94547.0,94521.0,0.3608]
[1736365074149,0.052896,94539.0,94521.0,0.3608]
[1736365074349,0.052905,94522.0,94521.0,0.3608]
[1736365074757,0.052906,94521.0,94515.0,0.052909]
[1736365075755,0.1223,94525.0,94515.0,0.052909]
[1736365075954,0.1223,94525.0,94511.0,0.3608]
[1736365076159,0.052908,94518.0,94511.0,0.3608]
[1736365076361,0.052908,94518.0,94515.0,0.003]
[1736365077162,0.052909,94516.0,94515.0,0.003]
[1736365078462,0.001,94518.0,94515.0,0.003]
[1736365078658,0.052909,94516.0,94515.0,0.003]
[1736365079057,0.05291,94514.0,94502.0,0.36905737]
[1736365079366,0.3608,94521.0,94510.0,0.052912]
[1736365079367,0.10759882,94520.0,94510.0,0.052912]
[1736365079569,0.10759882,94520.0,94505.0,0.052914]
[1736365079861,0.052909,94515.0,94509.0,0.052913]
[1736365080366,0.052909,94515.0,94511.0,0.052911]
[1736365080760,0.05291,94514.0,94500.0,0.36901435]
[1736365080968,0.052915,94505.0,94500.0,0.42193135]
[1736365081262,0.052917,94501.0,94496.0,0.00158708]
[1736365081765,0.052918,94500.0,94496.0,0.06284902]
[1736365081969,0.3608,94512.0,94496.0,0.00158708]
[1736365082265,0.3608,94512.0,94505.0,0.052914]
[1736365082570,0.001,94501.0,94500.0,0.413718]
[1736365082756,0.001,94501.0,94496.0,0.00458708]
[1736365082957,0.052919,94497.0,94496.0,0.00458708]
[1736365083265,0.001,94501.0,94497.0,0.052919]
[1736365083562,0.052916,94503.0,94496.0,0.00458708]
[1736365083762,0.052916,94503.0,94498.0,0.052918]
[1736365084271,0.052917,94501.0,94498.0,0.052918]
[1736365085458,0.052918,94500.0,94496.0,0.00458708]
[1736365085668,0.053919,94497.0,94496.0,0.00458708]
[1736365086266,0.052917,94502.0,94498.0,0.003]
[1736365086458,0.052917,94502.0,94497.0,0.03391899]
[1736365086860,0.1243,94509.0,94497.0,0.03391899]
[1736365087060,0.052919,94498.0,94496.0,0.00458708]
[1736365087368,0.052919,94497.0,94496.0,0.00458708]
[1736365087568,0.177019,94497.0,94477.0,0.0080177]
[1736365087764,0.052925,94486.0,94479.0,0.052929]
[1736365087971,0.052925,94486.0,94482.0,0.052928]
[1736365088755,0.3608,94490.0,94482.0,0.052928]
[1736365088961,0.052924,94489.0,94482.0,0.052928]
[1736365089269,0.001,94486.0,94482.0,0.052928]
[1736365090061,0.001,94486.0,94473.0,1.8608]
[1736365090262,0.001,94486.0,94476.0,0.052931]
[1736365090461,0.052928,94481.0,94473.0,1.8608]
[1736365090766,0.001,94486.0,94479.0,0.052929]
[1736365090961,0.001,94486.0,94483.0,0.3608]
[1736365091165,0.052927,94484.0,94483.0,0.3608]
[1736365091569,0.052927,94484.0,94479.0,0.052929]
[1736365092565,0.053927,94484.0,94479.0,0.052929]
[1736365092767,0.052928,94481.0,94479.0,0.052929]
[1736365092969,0.052928,94481.0,94477.0,0.05293]
[1736365093168,0.052931,94476.0,94473.0,0.36136]
[1736365093471,0.052931,94476.0,94474.0,0.052932]
[1736365094769,0.052931,94476.0,94475.0,0.052932]
[1736365095071,0.052929,94481.0,94473.0,0.3608]
[1736365095271,0.001,94476.0,94475.0,0.052932]
[1736365095570,0.001,94476.0,94473.0,0.3608]
[1736365095571,0.052919,94498.0,94497.0,0.052919]
[1736365095867,0.1251,94509.0,94497.0,0.052919]
[1736365095868,0.052918,94500.0,94497.0,0.3608]
[1736365096070,0.1243,94509.0,94497.0,0.3608]
[1736365096071,0.052919,94498.0,94497.0,0.3608]
[1736365096269,0.3608,94500.0,94489.0,0.3608]
[1736365096465,0.3608,94500.0,94490.0,0.052923]
[1736365096466,0.052918,94499.0,94490.0,0.052923]
[1736365096663,0.46839882,94500.0,94489.0,0.3608]
[1736365096872,0.052919,94498.0,94494.0,0.05292]
[1736365097175,0.3608,94500.0,94489.0,0.3608]
[1736365097373,0.052923,94490.0,94489.0,0.3608]
[1736365098777,0.053923,94490.0,94489.0,0.3608]
[1736365099378,0.001,94490.0,94489.0,0.413724]
[1736365099676,0.001,94490.0,94489.0,0.3608]
[1736365099871,0.2372,94499.0,94489.0,0.3608]
[1736365100074,0.052923,94491.0,94489.0,0.3608]
[1736365100271,0.052923,94490.0,94489.0,0.3608]
[1736365101372,0.052929,94480.0,94476.0,0.052931]
[1736365101768,0.052929,94480.0,94478.0,0.05293]
[1736365101968,0.052926,94485.0,94478.0,0.05293]
[1736365102171,0.052927,94483.0,94478.0,0.05293]
[1736365102479,0.052929,94480.0,94478.0,0.05293]
[1736365102777,0.053929,94480.0,94478.0,0.05293]
[1736365103373,0.05293,94478.0,94477.0,0.3608]
[1736365105070,0.052935,94470.0,94461.0,0.2288]
[1736365105280,0.3608,94480.0,94461.0,0.2288]
[1736365105281,0.052939,94462.0,94461.0,0.1127]
[1736365106378,0.052936,94468.0,94461.0,0.1127]
[1736365106583,0.052937,94465.0,94461.0,0.1127]
[1736365106972,0.00889709,94476.0,94468.0,0.052935]
[1736365107280,0.05293,94477.0,94473.0,0.052932]
[1736365107475,0.052928,94482.0,94471.0,0.3608]
[1736365107666,0.10759882,94481.0,94475.0,0.052931]
[1736365108377,0.052929,94480.0,94475.0,0.052931]
[1736365108570,0.052932,94475.0,94472.0,1.5]
[1736365108881,0.052929,94480.0,94472.0,0.052933]
[1736365109281,0.052929,94480.0,94473.0,1.5]
[1736365109683,0.003,94481.0,94478.0,0.05293]
[1736365111179,0.052928,94482.0,94472.0,0.00948877]
[1736365111578,0.052928,94482.0,94472.0,0.00892877]
[1736365111779,0.002,94481.0,94471.0,0.3608]
[1736365112082,0.002,94481.0,94471.0,0.36973694]
[1736365112277,0.002,94481.0,94471.0,0.00893694]
[1736365112478,0.3608,94480.0,94465.0,0.1884513]
[1736365112679,0.052937,94466.0,94465.0,0.1884513]
[1736365113480,0.05294,94460.0,94449.0,0.00927635]
[1736365113684,0.052937,94466.0,94450.0,0.1884906]
[1736365113882,0.530841,94459.0,94450.0,0.1884906]
[1736365114293,0.4779,94459.0,94450.0,0.1884906]
[1736365114591,0.052945,94452.0,94450.0,0.1884906]
[1736365114793,0.052945,94451.0,94450.0,0.1884906]
[1736365114987,0.052945,94451.0,94447.0,0.1218]
[1736365115187,0.052946,94449.0,94447.0,0.1218]
[1736365115789,0.052947,94448.0,94447.0,0.1218]
[1736365117003,0.052943,94454.0,94450.0,0.052945]
[1736365117292,0.052943,94454.0,94451.0,0.052945]
[1736365117891,0.052943,94454.0,94452.0,0.052944]
[1736365118086,0.3608,94459.0,94450.0,1.50056]
[1736365118389,0.052945,94451.0,94450.0,1.5]
[1736365118794,0.052945,94451.0,94449.0,0.052946]
[1736365119281,0.052945,94451.0,94450.0,0.052946]
[1736365122195,0.052947,94447.0,94446.0,0.00056]
[1736365122390,0.052946,94449.0,94436.0,0.1195]
[1736365122590,0.052953,94437.0,94436.0,0.18146572]
[1736365122790,0.10759882,94446.0,94430.0,0.3608]
[1736365122791,0.052956,94431.0,94430.0,0.3608]
[1736365123391,0.052956,94431.0,94430.0,0.36997116]
[1736365124886,0.053956,94431.0,94430.0,0.3608]
[1736365128199,0.053956,94431.0,94430.0,0.413757]
[1736365128691,0.001,94431.0,94430.0,1.913757]
[1736365129095,0.053956,94431.0,94430.0,1.913757]
[1736365130491,0.053956,94431.0,94430.0,0.3608]
[1736365130994,0.053956,94431.0,94430.0,1.8608]
[1736365131588,0.053956,94431.0,94430.0,0.413757]
[1736365132297,0.001,94431.0,94430.0,0.413757]
[1736365133087,0.052946,94449.0,94432.0,0.052955]
[1736365133292,0.052948,94446.0,94444.0,0.052949]
[1736365133497,0.052948,94446.0,94443.0,0.3608]
[1736365133699,0.3608,94450.0,94448.0,0.052946]
[1736365133901,0.052946,94449.0,94448.0,0.052946]
[1736365134096,0.052948,94445.0,94444.0,0.1174]
[1736365134796,0.001,94446.0,94440.0,0.00893767]
[1736365134797,0.052951,94441.0,94440.0,0.00893767]
[1736365134986,0.052952,94439.0,94434.0,0.170354]
[1736365135187,0.052953,94438.0,94434.0,0.170354]
[1736365135393,0.052953,94438.0,94434.0,0.17960499]
[1736365135593,0.46839882,94450.0,94434.0,0.17960499]
[1736365135800,0.052954,94436.0,94435.0,1.5]
[1736365135994,0.052954,94436.0,94434.0,0.17960499]
[1736365136500,0.052956,94431.0,94430.0,0.3608]
[1736365137102,0.052956,94431.0,94425.0,0.1139]
[1736365137103,0.052951,94441.0,94426.0,0.3608]
[1736365137297,0.052958,94428.0,94426.0,0.3608]
[1736365137805,0.3608,94442.0,94426.0,0.3608]
[1736365137989,0.052958,94427.0,94426.0,0.3608]
[1736365139204,0.054958,94427.0,94426.0,0.3608]
[1736365141105,0.05296,94424.0,94423.0,0.06365527]
[1736365142207,0.05396,94424.0,94423.0,0.06365527]
[1736365142405,0.002,94424.0,94423.0,0.06365527]
[1736365142992,0.002,94424.0,94423.0,0.01069527]
[1736365143214,0.05496,94424.0,94423.0,0.01069527]
[1736365144307,0.05496,94424.0,94423.0,0.0015884]
[1736365151210,0.05297,94407.0,94404.0,0.413771]
[1736365151408,0.052971,94405.0,94404.0,0.3608]
[1736365151719,0.052972,94402.0,94401.0,0.1094]
[1736365151897,0.052972,94402.0,94401.0,1.6094]
[1736365152110,0.413772,94402.0,94401.0,1.61840044]
[1736365152806,0.052972,94402.0,94401.0,2.03217344]
[1736365153112,0.052973,94401.0,94400.0,0.1]
[1736365153298,0.169773,94401.0,94400.0,0.1]
[1736365155512,0.170773,94401.0,94400.0,0.1]
[1736365156515,0.24864391,94401.0,94400.0,0.1]
[1736365157015,0.13184391,94401.0,94400.0,0.1]
[1736365157314,0.001,94401.0,94400.0,0.513774]
[1736365157615,0.356746,94419.0,94400.0,0.4608]
[1736365157908,0.356746,94419.0,94410.0,1.5]
[1736365158115,0.3608,94411.0,94410.0,1.5]
[1736365158309,0.413767,94411.0,94410.0,1.5]
[1736365159012,0.589223,94411.0,94410.0,1.5]
[1736365159516,0.052973,94401.0,94400.0,0.1]
[1736365159719,0.413773,94401.0,94400.0,0.1]
[1736365159912,0.052973,94401.0,94400.0,1.6]
[1736365160103,0.537256,94411.0,94400.0,1.6]
[1736365160304,0.052972,94404.0,94400.0,1.6]
[1736365160910,0.052969,94408.0,94405.0,0.052971]
[1736365161119,0.0778599,94410.0,94400.0,1.653533]
[1736365161313,0.18545872,94410.0,94400.0,1.652973]
[1736365161920,0.05297,94406.0,94401.0,0.052973]
[1736365162513,0.052971,94405.0,94401.0,0.052973]
[1736365162912,0.07786246,94405.0,94401.0,0.052973]
[1736365163116,0.052972,94404.0,94401.0,0.052973]
[1736365163521,0.052972,94404.0,94402.0,0.1154]
[1736365164421,0.001,94405.0,94402.0,0.1154]
[1736365164622,0.052972,94403.0,94402.0,0.1154]
[1736365165217,0.052973,94401.0,94400.0,0.10056]
[1736365165419,0.052973,94401.0,94400.0,0.1]
[1736365166624,0.053973,94401.0,94400.0,0.1]
[1736365168826,0.13184325,94401.0,94400.0,0.1]
[1736365169421,0.13184325,94401.0,94400.0,0.04076528]
[1736365169623,0.13084325,94401.0,94400.0,0.04076528]
[1736365170927,0.052991,94369.0,94368.0,0.00158954]
[1736365171133,0.052999,94354.0,94353.0,0.1108]
[1736365171431,0.413799,94354.0,94353.0,0.1108]
[1736365171633,0.053004,94347.0,94340.0,0.053007]
[1736365171827,0.3608,94354.0,94341.0,0.1108]
[1736365172127,0.053003,94347.0,94344.0,0.053005]
[1736365172332,0.053006,94344.0,94341.0,0.1108]
[1736365172523,0.3608,94357.0,94341.0,0.1108]
[1736365172830,0.052992,94367.0,94350.0,0.3458]
[1736365173025,0.052992,94367.0,94366.0,0.3608]
[1736365173026,0.052993,94367.0,94366.0,0.3608]
[1736365174126,0.13288547,94367.0,94366.0,0.3608]
[1736365175428,0.07989247,94367.0,94366.0,0.3608]
[1736365175628,0.07989247,94367.0,94366.0,0.413797]
[1736365176234,0.07989247,94367.0,94366.0,1.913797]
[1736365176530,0.07989247,94367.0,94366.0,1.552997]
[1736365176831,0.053007,94350.0,94345.0,0.05301]
[1736365177933,0.053008,94348.0,94347.0,0.00158987]
[1736365180435,0.054008,94348.0,94347.0,0.00158987]
[1736365181227,0.05395622,94348.0,94347.0,0.00158987]
[1736365181428,0.001,94348.0,94347.0,0.05459787]
[1736365181736,0.1,94360.0,94359.0,0.053001]
[1736365182037,0.1,94360.0,94359.0,0.413801]
[1736365182723,0.1,94360.0,94359.0,0.053001]
[1736365183232,0.37043645,94379.0,94377.0,0.052991]
[1736365183533,0.37043645,94379.0,94359.0,0.053001]
[1736365183534,0.052994,94373.0,94369.0,0.052996]
[1736365183927,0.001,94360.0,94359.0,0.00970896]
[1736365184129,0.001,94360.0,94359.0,0.053001]
[1736365184533,0.052995,94371.0,94367.0,0.052996]
[1736365184739,0.052995,94370.0,94367.0,0.052996]
[1736365185440,0.053001,94359.0,94358.0,0.4886426]
[1736365185732,0.052998,94365.0,94358.0,0.4886426]
[1736365186040,0.053002,94360.0,94358.0,0.4886426]
[1736365186436,0.053002,94360.0,94359.0,0.001]
[1736365187038,0.053002,94359.0,94358.0,0.4896426]
[1736365187739,0.053002,94359.0,94358.0,0.4886426]
[1736365188242,0.053002,94359.0,94358.0,0.3713426]
[1736365191039,0.053002,94359.0,94358.0,0.0105426]
[1736365192937,0.053002,94359.0,94358.0,0.001]
[1736365193446,0.3608,94363.0,94358.0,0.001]
[1736365193630,0.053002,94359.0,94358.0,0.001]
[1736365194035,0.053008,94348.0,94347.0,0.00158987]
[1736365195232,0.053012,94342.0,94341.0,0.1155]
[1736365195428,0.053013,94339.0,94338.0,0.3608]
[1736365195641,0.4705,94341.0,94334.0,0.00969192]
[1736365195940,0.3608,94339.0,94322.0,0.00159024]
[1736365196237,0.053022,94323.0,94322.0,0.00159024]
[1736365197135,0.053022,94323.0,94322.0,0.00259024]
[1736365197845,0.054022,94323.0,94322.0,0.00259024]
[1736365201141,0.054022,94323.0,94322.0,0.001]
[1736365201335,0.054022,94323.0,94305.0,0.3608]
[1736365201532,0.053031,94308.0,94303.0,0.053033]
[1736365201733,0.10759882,94316.0,94300.0,0.10962818]
[1736365201946,0.053034,94302.0,94300.0,0.10962818]
[1736365202346,0.053034,94302.0,94300.0,0.1]
[1736365203143,0.053034,94302.0,94275.0,0.00056]
[1736365203144,0.5,94298.0,94275.0,0.00056]
[1736365203340,0.3608,94277.0,94272.0,0.00964069]
[1736365203649,0.3608,94277.0,94261.0,0.3608]
[1736365203942,0.3608,94277.0,94257.0,0.2512684]
[1736365203943,0.053053,94268.0,94257.0,0.26069457]
[1736365204150,0.053057,94262.0,94257.0,0.26069457]
[1736365204454,0.053056,94264.0,94257.0,0.26069457]
[1736365204750,0.3608,94260.0,94258.0,0.053059]
[1736365204951,0.3608,94269.0,94258.0,0.053059]
[1736365205153,0.3608,94269.0,94261.0,0.053057]
[1736365205443,0.053049,94277.0,94266.0,0.053054]
[1736365206036,0.053049,94277.0,94260.0,0.10759882]
[1736365206240,0.053049,94277.0,94267.0,0.053054]
[1736365206544,0.053051,94273.0,94259.0,0.3608]
[1736365206745,0.10759882,94270.0,94259.0,0.3608]
[1736365206952,0.3608,94271.0,94259.0,0.3608]
[1736365207556,0.10759882,94270.0,94259.0,0.3608]
[1736365207853,0.053057,94262.0,94251.0,1.5634172]
[1736365208042,0.10759882,94270.0,94251.0,1.5097542]
[1736365208244,0.053057,94261.0,94251.0,1.5097542]
[1736365208546,0.053059,94258.0,94251.0,1.5097542]
[1736365209246,0.053062,94253.0,94251.0,0.0097542]
[1736365209453,0.10759882,94261.0,94250.0,0.3608]
[1736365209651,0.053064,94250.0,94248.0,0.00159159]
[1736365211248,0.053064,94250.0,94249.0,1.5]
[1736365211555,0.053064,94250.0,94248.0,0.00159159]
[1736365211949,0.054064,94250.0,94248.0,0.00159159]
[1736365212154,0.054064,94250.0,94249.0,1.5]
[1736365212449,0.054064,94250.0,94248.0,0.00159159]
[1736365213757,0.001,94250.0,94238.0,1.5]
[1736365213943,0.001,94250.0,94240.0,0.053069]
[1736365214143,0.001,94250.0,94244.0,0.3608]
[1736365214345,0.001,94250.0,94244.0,0.413867]
[1736365215053,0.001,94250.0,94244.0,0.3608]
[1736365215356,0.053066,94246.0,94238.0,1.51011857]
[1736365215557,0.053066,94246.0,94238.0,1.50955857]
[1736365215853,0.053067,94245.0,94241.0,0.3608]
[1736365216046,0.001,94250.0,94238.0,1.51015857]
[1736365216246,0.001,94250.0,94240.0,0.46839882]
[1736365216459,0.001,94250.0,94249.0,0.3608]
[1736365216646,0.001,94250.0,94240.0,0.46839882]
[1736365216647,0.053064,94249.0,94240.0,0.3608]
[1736365216953,0.053065,94248.0,94241.0,0.053068]
[1736365217263,0.001,94250.0,94244.0,0.053066]
[1736365217555,0.001,94250.0,94249.0,0.3608]
[1736365217859,0.3608,94287.0,94250.0,0.053063]
[1736365218057,0.053041,94290.0,94278.0,0.3608]
[1736365218272,0.053037,94297.0,94286.0,0.3608]
[1736365218459,0.053037,94297.0,94289.0,0.053041]
[1736365218647,0.46839882,94310.0,94302.0,0.053034]
[1736365218850,0.48058224,94310.0,94295.0,0.3608]
[1736365219055,0.053034,94303.0,94295.0,0.3608]
[1736365219650,0.48138224,94310.0,94295.0,0.3608]
[1736365219856,0.48058224,94310.0,94295.0,0.3608]
[1736365220359,0.053039,94294.0,94288.0,0.053042]
[1736365220560,0.10759882,94300.0,94289.0,0.053041]
[1736365220760,0.053037,94298.0,94289.0,0.053041]
[1736365220952,0.3608,94301.0,94295.0,0.053038]
[1736365221157,0.2245,94317.0,94294.0,0.3608]
[1736365221460,0.053038,94297.0,94294.0,0.3608]
[1736365221658,0.053038,94297.0,94295.0,0.002]
[1736365222359,0.001,94301.0,94295.0,0.002]
[1736365222553,0.053038,94296.0,94295.0,0.002]
[1736365223864,0.001,94297.0,94295.0,0.002]
[1736365225654,0.004,94296.0,94292.0,0.05304]
[1736365226461,0.053036,94299.0,94292.0,0.03203999]
[1736365226865,0.053036,94299.0,94292.0,0.04735854]
[1736365227163,0.053036,94299.0,94293.0,0.053039]
[1736365227463,0.053036,94299.0,94294.0,0.053038]
[1736365227859,0.053036,94299.0,94292.0,0.01631855]
[1736365228055,0.053036,94299.0,94295.0,0.053038]
[1736365229056,0.3608,94302.0,94292.0,0.01531855]